[Event "8. Arber-Schachopen 2019"]
[Site "Bodenmais"]
[Date "2019.08.04"]
[Round "9.25"]
[White "Simacek, Vaclav"]
[Black "Fruehe, Norbert"]
[Result "0-1"]
[ECO "C29"]
[WhiteElo "1809"]
[BlackElo "1936"]
[Annotator "NA"]
[PlyCount "80"]
[EventDate "2019.07.27"]
[EventCountry "GER"]
[SourceTitle "playchess.com"]
[Source "ChessBase"]
[SourceQuality "1"]
[TimeControl "40/5400+30:1800+30"]

1. e4 {[%emt 0:00:00]} e5 {[%emt 0:00:00]} 2. Nc3 {[%emt 0:00:00]} Nf6 {[%emt 0:00:00]} 3. f4 {[%emt 0:00:00]} d5 {[%emt 0:00:00]} 4. exd5 {[%emt 0:00:32]} Nxd5 {[%emt 0:01:53]} 5. fxe5 {[%emt 0:00:19]} Qh4+ {[%emt 0:07:52]} 6. g3 {[%emt 0:00:17]} Nxc3 {[%emt 0:00:33]} 7. gxh4 {[%emt 0:00:08]} Nxd1 {[%emt 0:00:14]} 8. Kxd1 {[%emt 0:00:04]} Nc6 {[%emt 0:06:15]} 9. Nf3 {[%emt 0:01:38]} Bg4 {[%emt 0:01:59]} 10. Be2 {[%emt 0:00:10]} O-O-O {[%emt 0:04:26]} 11. Rf1 {[%emt 0:05:29]} Bxf3 {[%emt 0:05:21]} 12. Rxf3 {[%emt 0:00:15]} Nxe5 {[%emt 0:00:57]} 13. Rg3 {[%emt 0:08:15]} Rd4 {[%emt 0:07:22]} 14. h5 {[%emt 0:02:52]} Rh4 {[%emt 0:07:53]} 15. Rg2 {[%emt 0:00:08]} f5 {[%emt 0:05:02]} 16. d3 {[%emt 0:00:07]} f4 {[%emt 0:02:20]} 17. Rg5 {[%emt 0:07:52]} f3 {[%emt 0:06:17]} 18. Rxe5 {[%emt 0:00:31]} fxe2+ {[%emt 0:00:17]} 19. Rxe2 {[%emt 0:00:06]} Bd6 {[%emt 0:04:01]} 20. Be3 {[%emt 0:03:26]} Rxh5 {[%emt 0:18:25]} 21. Kd2 {[%emt 0:00:40]} Rxh2 {[%emt 0:01:20]} 22. Rxh2 {[%emt 0:04:17]} Bxh2 {[%emt 0:00:02]} 23. Bd4 {[%emt 0:00:07]} Bf4+ {[%emt 0:04:24]} 24. Kc3 {[%emt 0:01:54]} Rg8 {[%emt 0:00:12]} 25. Re1 {[%emt 0:03:45]} Kd7 {[%emt 0:02:54]} 26. Re4 {[%emt 0:00:56]} Bd6 {[%emt 0:01:36]} 27. Rg4 {[%emt 0:01:01]} g6 {[%emt 0:00:37]} 28. Rg2 {[%emt 0:04:24]} g5 {[%emt 0:02:41]} 29. Kd2 {[%emt 0:03:16]} h5 {[%emt 0:01:16]} 30. Ke2 {[%emt 0:00:24]} h4 {[%emt 0:01:05]} 31. Rg4 {[%emt 0:05:05]} h3 {[%emt 0:04:09]} 32. Kf1 {[%emt 0:00:12]} Rf8+ {[%emt 0:00:34]} 33. Kg1 {[%emt 0:00:08]} Rf4 {[%emt 0:00:27]} 34. Rxf4 {[%emt 0:01:32]} Bxf4 {[%emt 0:00:09]} 35. c4 {[%emt 0:00:20]} a6 {[%emt 0:00:27]} 36. b4 {[%emt 0:00:16]} Ke6 {[%emt 0:00:29]} 37. a4 {[%emt 0:00:16]} Kf5 {[%emt 0:02:12]} 38. Bc3 {[%emt 0:01:56]} g4 {[%emt 0:00:28]} 39. b5 {[%emt 0:00:12]} g3 {[%emt 0:00:38]} 40. Bd4 {[%emt 0:00:59]} Kg4 {[%emt 0:00:28]} 0-1